Cogmind - Beta 11.1 @@@ ROGUE MODE // 2022.06.30 @ 18:34:21 Player: Sunny Result: Destroyed by Y-45 Defender with Heavy Assault Rifle Performance ------------- Evolutions (2) 1000 Regions Visited (4) 800 Robots Destroyed (42) 210 Value Destroyed (1122) 1122 Prototype IDs (3) 60 Alien Tech Used (0) 0 Bonus (0) 0 TOTAL SCORE: 3192 Bonus ------- None Cogmind --------- Core Integrity 0/550 Matter 110/300 Energy 50/100 System Corruption 1% Temperature Cool (9) Movement Core (50) Location -8/Storage Parts ------- > --- POWER (2) -------- (None) > --- PROPULSION (2) --- (None) > --- UTILITY (4) ------ Heat Sink Weight Redist. System Trap Scanner Improved Terrain Scan Processor > --- WEAPON (3) ------- (None) > --- INVENTORY (5) ---- Improved Light Cannon Peak State ------------ > --- POWER ------------ Ion Engine Heavy Ion Engine > --- PROPULSION ------- Aluminum Leg Aluminum Leg > --- UTILITY ---------- Trap Scanner Improved Terrain Scan Processor ECM Suite Medium Armor Plating > --- WEAPON ----------- Improved Light Cannon Improved Light Cannon Improved Light Cannon > --- INVENTORY -------- Heat Sink Light Assault Rifle Improved Datajack [Rating: 21] Favorites ----------- Power Ion Engine Engine Ion Engine Propulsion Aluminum Leg Leg Aluminum Leg Wheel Wheel Flight Unit Flight Unit Utility ECM Suite Device ECM Suite Processor Improved Terrain Scan Processor Protection Medium Armor Plating Weapon Improved Light Cannon Energy Gun Medium Laser Ballistic Gun Light Assault Rifle Ballistic Cannon Improved Light Cannon Launcher Advanced EMP Blaster Special Melee Weapon Improved Datajack Build | -11 -10 -9 -8 -8 ------- Run | Scr Mat Mat Mat Sto Slots Evolved 4 | . . 2 2 . Power 1 | . . 1 . . Propulsion . | . . . . . Utility 2 | . . . 2 . Weapon 1 | . . 1 . . Parts Attached 41 | 5 2 22 9 3 Power 8 | 1 . 5 2 . Engine 8 | 1 . 5 2 . Core . | . . . . . Reactor . | . . . . . Propulsion 8 | 2 . 5 1 . Treads . | . . . . . Leg 3 | . . 2 1 . Wheel 3 | 2 . 1 . . Hover . | . . . . . Flight 2 | . . 2 . . Utility 11 | . 2 4 2 3 Device 9 | . 2 3 1 3 Storage . | . . . . . Processor 1 | . . . 1 . Hackware . | . . . . . Protection 1 | . . 1 . . Artifact . | . . . . . Weapon 14 | 2 . 8 4 . Energy Gun 4 | 2 . 2 . . Energy Cannon . | . . . . . Ballistic Gun 5 | . . 3 2 . Ballistic Cannon 3 | . . 3 . . Launcher 1 | . . . 1 . Special Weapon . | . . . . . Impact Weapon . | . . . . . Slashing Weapon . | . . . . . Piercing Weapon . | . . . . . Special Melee Weapon 1 | . . . 1 . Unidentified Prototypes 3 | . . 1 2 . Parts Lost 23 | . . 11 11 1 Power 7 | . . 4 3 . Propulsion 5 | . . 3 2 . Utility 4 | . . 1 2 1 Weapon 7 | . . 3 4 . Highest Loss Streak 8 | . . 3 8 1 To Critical Strikes . | . . . . . Average Slot Usage (%) 74 | . 91 71 83 34 Engine 12 | . 14 11 16 . Leg 7 | . . 4 16 . Wheel 4 | . 28 4 . . Device 20 | . 19 21 16 25 Processor 2 | . . . 8 9 Energy Gun 13 | . 28 18 . . Ballistic Gun 2 | . . 3 1 . Ballistic Cannon 10 | . . 7 20 . Naked Turns . | . . . . . Heaviest Build 36 | 7 10 29 36 4 Greatest Support 27 | 20 20 20 27 9 Greatest Overweight (x) 5 | . . 5 1 1 Average Overweight (x) . | . . 1 . . Largest Inventory Capacity 5 | 5 5 5 5 5 Average Capacity 5 | 5 5 5 5 5 Most Carried 5 | 2 3 5 5 2 Average Carried 3 | . 1 3 3 1 Final Capacity 5 | 5 5 5 5 5 Final Carried 4 | 1 3 4 3 1 Class Distribution -------------------- 48% | Skirmisher 32% | Mutant 12% | Scavenger-Skirmisher 3% | Tank Dominant Class ---------------- Mutant | -10/Materials Skirmisher | -9/Materials Skirmisher | -8/Materials Mutant | -8/Storage Resources | -11 -10 -9 -8 -8 ----------- Run | Scr Mat Mat Mat Sto Matter Collected 713 | 250 . 196 267 . Remotely . | . . . . . Salvage Created 1350 | 44 . 754 552 . Parts 88 | 1 . 41 46 . Haulers Intercepted 2 | . . . 2 . Recyclers Shooed 2 | . . . 2 . Parts Field Recycled . | . . . . . Retrieved Matter . | . . . . . Parts Self-Destructed . | . . . . . Prevented . | . . . . . Kills | -11 -10 -9 -8 -8 ------- Run | Scr Mat Mat Mat Sto Combat Hostiles Destroyed 32 | 1 . 19 12 . Guns 20 | 1 . 16 3 . Cannons 9 | . . 3 6 . AOE 2 | . . . 2 . Classes Destroyed 8 | 1 . 5 2 . Worker 2 | . . 2 . . Builder 3 | . . . 3 . Hauler 2 | . . . 2 . Operator 1 | . . 1 . . Watcher 2 | . . 1 1 . Swarmer 10 | . . 6 4 . Grunt 14 | 1 . 9 4 . Sentry 8 | . . 4 4 . Best Kill Streak 8 | 1 . 5 8 . Combat Bots Only 4 | 1 . 4 4 . Max Kills in Single Turn 3 | 1 . 1 3 . Gunslinging . | . . . . . Exploded 1 | . . . 1 . Melee . | . . . . . Uniques/NPCs Destroyed . | . . . . . Combat | -11 -10 -9 -8 -8 -------- Run | Scr Mat Mat Mat Sto Damage Taken 2779 | 45 . 1057 1466 211 Core 869 | 12 . 307 382 168 Absorbed by Shields . | . . . . . Core Remaining (%) 71 | 95 95 23 . . Volleys Fired 112 | 4 . 70 38 . Largest 3 | 2 . 3 3 . Hottest 145 | 100 . 145 117 . Shots Fired 213 | 8 . 130 75 . Gun 140 | 8 . 114 18 . Cannon 68 | . . 16 52 . Launcher 5 | . . . 5 . Special . | . . . . . Kinetic 116 | . . 46 70 . Thermal 64 | 8 . 56 . . Explosive . | . . . . . Electromagnetic 33 | . . 28 5 . Robot Hit Streak 10 | 3 . 10 5 . Robot Miss Streak 5 | 2 . 5 5 . Penetration Max . | . . . . . Secondary Targets 1 | . . 1 . . Max Gunslinging Chain 1 | . . 1 . . Shots Hit Robots 127 | 5 . 88 34 . Core Hits 62 | 2 . 38 22 . Critical Kills . | . . . . . Critical Parts Destroyed . | . . . . . Critical Strikes 6 | 1 . 3 2 . Burn 4 | 1 . 3 . . Blast 2 | . . . 2 . Melee Attacks 2 | . . . 2 . Impact . | . . . . . Slashing . | . . . . . Piercing . | . . . . . Sneak Attacks 1 | . . . 1 . Combat Hostiles . | . . . . . Follow-up Attacks . | . . . . . Damage Inflicted 2273 | 64 . 1169 1040 . Guns 1092 | 64 . 955 73 . Cannons 642 | . . 108 534 . Explosions 487 | . . 54 433 . Melee . | . . . . . Ramming 52 | . . 52 . . Kinetic 887 | . . 280 607 . Thermal 640 | 64 . 504 72 . Explosive . | . . . . . Electromagnetic 694 | . . 333 361 . Impact . | . . . . . Slashing . | . . . . . Piercing . | . . . . . Highest Corruption 1 | . . 1 1 1 Average Corruption 1 | . . 1 1 1 Corruption Purged . | . . . . . Corruption Blocked . | . . . . . Effects 12 | . . 11 1 . Message Errors 3 | . . 2 1 . Matter Fused 4 | . . 4 . . Heat Flow Errors 1 | . . 1 . . Energy Discharges 1 | . . 1 . . Parts Rejected 1 | . . 1 . . Misfires 1 | . . 1 . . Weapon Failures 1 | . . 1 . . Overload Shots . | . . . . . Overflow Damage 26 | . . 1 25 . Projectiles . | . . . . . Explosions 25 | . . . 25 . Melee 1 | . . 1 . . Knockbacks 3 | . . 1 2 . Impact . | . . . . . Kinetic 3 | . . 1 2 . Secondary . | . . . . . Self-Inflicted Damage 116 | . . 25 91 . Shots 6 | . . . 6 . Rammed 5 | . . 5 . . Targets Rammed 6 | . . 5 1 . Kicked 1 | . . . 1 . Crushed . | . . . . . Highest Temperature 539 | 180 . 335 539 . Average Temperature 131 | 104 . 111 162 . Received Heat Transfer 930 | 24 . 411 396 99 Effects 12 | . . 4 8 . Shutdowns 5 | . . . 5 . Energy Bleed 3 | . . 1 2 . Interference 3 | . . 3 . . Short Circuit 1 | . . . 1 . Siege Activations . | . . . . . Robots Corrupted 1 | . . . 1 . Combat Hostiles 1 | . . . 1 . Parts Fried . | . . . . . Impact Corruptions 1 | . . 1 . . Robots Melted . | . . . . . Combat Hostiles . | . . . . . Parts Melted 7 | 2 . 5 . . Heat Transferred 1913 | 259 . 1604 50 . Parts Sabotaged . | . . . . . Parts Stolen . | . . . . . Parts Stripped . | . . . . . Power Chain Reactions 6 | . . 1 5 . Missiles Intercepted . | . . . . . Alert | -11 -10 -9 -8 -8 ------- Run | Scr Mat Mat Mat Sto Peak Influence 404 | 20 13 404 348 117 Initial 129 | . 13 5 129 97 Average 184 | 2 13 209 195 111 Maximum Alert Level 2 | . . 2 1 . Low Security (%) 50 | 100 100 39 51 100 Level 1 48 | . . 57 48 . Level 2 1 | . . 2 . . Level 3 . | . . . . . Level 4 . | . . . . . Level 5 . | . . . . . High Security . | . . . . . Max Security . | . . . . . Squads Dispatched 6 | . 1 2 3 . Investigation . | . . . . . Extermination . | . . . . . Reinforcement 6 | . 1 2 3 . Assault . | . . . . . Garrison . | . . . . . Intercept . | . . . . . Searches Triggered . | . . . . . Construction Impeded . | . . . . . Haulers Reinforced . | . . . . . Active Scanning Responses . | . . . . . Cargo Convoy Interrupts . | . . . . . Stealth | -11 -10 -9 -8 -8 --------- Run | Scr Mat Mat Mat Sto Distress Signals 7 | . . 3 4 . Communications Jammed . | . . . . . Distress Signals . | . . . . . Times Spotted 66 | 1 . 37 25 3 Peak Tracking Total 8 | 1 . 8 5 4 Tactical Retreats 5 | . . 3 2 . Traps | -11 -10 -9 -8 -8 ------- Run | Scr Mat Mat Mat Sto Traps Triggered 1 | . . . 1 . Indirectly . | . . . . . Trap Hack Attempts . | . . . . . Triggered . | . . . . . Disarmed . | . . . . . Reprogrammed . | . . . . . Reused . | . . . . . Traps Extracted . | . . . . . Installed . | . . . . . Triggered . | . . . . . Machines | -11 -10 -9 -8 -8 ---------- Run | Scr Mat Mat Mat Sto Machines Disabled 3 | . . 3 . . Max in Single Turn 1 | . . 1 . . Machines Sabotaged . | . . . . . Garrisons Compromised . | . . . . . Overloaded Fab Kills . | . . . . . Hacking | -11 -10 -9 -8 -8 --------- Run | Scr Mat Mat Mat Sto Machines Accessed 9 | . 1 4 2 2 Terminals 7 | . 1 3 2 1 Fabricators . | . . . . . Repair Stations . | . . . . . Recycling Units 1 | . . 1 . . Scanalyzers . | . . . . . Garrison Access 1 | . . . . 1 Total Hacks 14 | . 2 6 3 3 Successful 10 | . . 5 3 2 Failed 4 | . 2 1 . 1 Catastrophic 1 | . 1 . . . Database Lockouts . | . . . . . Manual . | . . . . . Terminals 11 | . 2 4 3 2 Fabricators . | . . . . . Repair Stations . | . . . . . Recycling Units 2 | . . 2 . . Scanalyzers . | . . . . . Garrison Access 1 | . . . . 1 Terminal Hacks 7 | . . 3 3 1 Alert Level 1 | . . 1 . . Locate Traps 1 | . . . . 1 Dispatch Records 2 | . . 1 1 . Patrol Status 1 | . . 1 . . Hauler Manifests 1 | . . . 1 . Zone Layout 1 | . . . 1 . Fabricator Hacks . | . . . . . Repair Station Hacks . | . . . . . Recycling Unit Hacks 2 | . . 2 . . Process 1 | . . 1 . . Report Inventory 1 | . . 1 . . Scanalyzer . | . . . . . Garrison Access Hacks 1 | . . . . 1 Unlock Access 1 | . . . . 1 Unauthorized Hacks . | . . . . . Terminals . | . . . . . Fabricators . | . . . . . Repair Stations . | . . . . . Recycling Units . | . . . . . Scanalyzers . | . . . . . Garrison Access . | . . . . . Data Cores Recovered . | . . . . . Used . | . . . . . Hacking Detections 7 | . 1 3 2 1 Full Trace Events 1 | . 1 . . . Feedback Events . | . . . . . Feedback Blocked . | . . . . . Robot Schematics Acquired . | . . . . . Robots Built . | . . . . . Authchips . | . . . . . Time . | . . . . . Total Robot Build Rating . | . . . . . Part Schematics Acquired . | . . . . . Parts Built . | . . . . . Authchips . | . . . . . Time . | . . . . . Total Part Build Rating . | . . . . . Parts Repaired . | . . . . . Time . | . . . . . Parts Recycled . | . . . . . Recycled Matter 1 | . . 1 . . Retrieved Matter . | . . . . . Retrieved Components . | . . . . . Parts Scanalyzed . | . . . . . Part Schematics Acquired . | . . . . . Parts Damaged . | . . . . . Bothacking | -11 -10 -9 -8 -8 ------------ Run | Scr Mat Mat Mat Sto Used RIF Installer . | . . . . . Robots Hacked 1 | . . . 1 . Non-combat . | . . . . . Combat 1 | . . . 1 . Robot Hacks Applied 1 | . . . 1 . parse_system 1 | . . . 1 . Relay Couplers Released . | . . . . . Fabnet Peak Effective % . | . . . . . Robots Rewired . | . . . . . Allies Hacked . | . . . . . Hacks Repelled . | . . . . . Allies | -11 -10 -9 -8 -8 -------- Run | Scr Mat Mat Mat Sto Total Allies . | . . . . . Largest Group . | . . . . . Highest-Rated Group . | . . . . . Highest-Rated Ally . | . . . . . Total Orders . | . . . . . Ally Attacks . | . . . . . Total Damage . | . . . . . Kills . | . . . . . Allies Corrupted . | . . . . . Allies Melted . | . . . . . Intel | -11 -10 -9 -8 -8 ------- Run | Scr Mat Mat Mat Sto Robot Analysis Total . | . . . . . Derelict Logs Recovered . | . . . . . Drone Launches . | . . . . . Drone Recoveries . | . . . . . Exploration | -11 -10 -9 -8 -8 ------------- Run | Scr Mat Mat Mat Sto Turns Passed 1994 | 76 97 1233 518 70 Spaces Moved 1151 | 74 114 661 220 82 Core 312 | 20 . 196 14 82 Treads . | . . . . . Legs 343 | . . 137 206 . Wheels 465 | 54 114 297 . . Hover . | . . . . . Flight 31 | . . 31 . . Fastest Speed 37 | 50 80 37 50 50 Average Speed 130 | 71 80 138 171 80 Slowest Speed 300 | 80 80 300 200 100 Overloaded Moves . | . . . . . Propulsion Burnouts . | . . . . . Robots Hopped 2 | . . 2 . . Cave-ins Triggered . | . . . . . Exploration Rate (%) 19 | 6 24 37 17 14 Regions Visited 4 Branch Regions 1 Pre-discovered Areas . | . . . . . Known Exits Taken . | . . . . . Unknown Exits Taken 4 | 1 1 1 1 . Scrap Searched . | . . . . . Spaces Dug . | . . . . . Terrain Destroyed 33 | . . 7 26 . Melee . | . . . . . Projectile 5 | . . 1 4 . AOE 28 | . . 6 22 . Terrain Rammed . | . . . . . Walls Destroyed . | . . . . . Machines Disabled . | . . . . . Actions | -11 -10 -9 -8 -8 --------- Run | Scr Mat Mat Mat Sto Total 1466 | 88 119 875 298 86 Wait 101 | . . 84 17 . Move 1143 | 73 113 656 219 82 Hop 2 | . . 2 . . Pick Up 42 | 6 4 24 7 1 Fast Attach . | . . . . . Attach 40 | 5 2 21 9 3 Detach 5 | . . 3 2 . Swap 1 | . . 1 . . Drop 12 | . . 9 3 . Fire 112 | 4 . 70 38 . Melee 2 | . . . 2 . Ram 5 | . . 5 . . Kick 1 | . . . 1 . Crush . | . . . . . Escape Stasis . | . . . . . Rewire . | . . . . . Trap . | . . . . . Miscellaneous . | . . . . . Route ------- -11/Scrapyard -10/Materials -9/Materials -8/Materials -8/Storage (discovered 1 exit: Gar) History --------- Turn | Location | Event 2 | -11/Scrapyard | Met Revision 17 55 | -11/Scrapyard | Discovered new exit (range 8) 77 | -11/Scrapyard | Entered Materials 163 | -10/Materials | Discovered new exit (range 3) 174 | -10/Materials | Entered another Materials area 174 | -9/Materials | Evolved 2 slots: Power x1, Weapon x1 335 | -9/Materials | Lost 3 parts (2p1n) 698 | -9/Materials | Build established: Skirmisher 1002 | -9/Materials | Core integrity fell below 50% 1379 | -9/Materials | Discovered new exit (range 7) 1407 | -9/Materials | Entered another Materials area 1407 | -8/Materials | Evolved 2 slots: Utility x2 1870 | -8/Materials | Discovered new exit (range 8) 1906 | -8/Materials | Core integrity fell below 50% 1925 | -8/Materials | Entered Storage 1950 | -8/Storage | Lost 8 parts (2p2n1u3w) 1952 | -8/Storage | Core integrity fell below 20% 1987 | -8/Storage | Identified exit to Garrison 1995 | -8/Storage | Destroyed by Y-45 Defender with Heavy Assault Rifle Last Messages --------------- The unstable cave ceiling collapses. W-25 Informer sends out distress signal. Acquired 5 matter. U-05 Engineer lays Concrete. K-01 Serf collects debris. LOCATION=UNKNOWN GOAL=ESCAPE Critical hit (Burn: +37). Terrain Scanner destroyed. Acquired Weight Redist. System. Connecting with Garrison Access... Current location identified: Storage >>Unlock Access door unlocked. EXIT=UNLOCKED: GARRISON Connecting with Terminal... >>Traps(Locate) Found 2 traps in 1 array: 2x Shock Trap Map updated. Map ----- +----------------------------------------------------+ | ?????????????????????????????????????????????????? | | ?????????????????????????????????????????????????? | | ?????????????????????????????????????????????????? | | ?????????????????????????????????????????????????? | | ?????????????????????????????????????????????????? | | ?????????????????????????????????????????????????? | | ?????????????????????????????????????????????????? | | ?????????????????????????????????????????????????? | | ?????????????????????????????????????????????????? | | ?????????????????????????????????????????????????? | | ?????????????????????????????????????????????????? | | ?????????????????????????????????????????????????? | | ????????????????????????#####????????????????????? | | ????????????? ?? ??###### " #????????????????????? | | ???#????#?????"????##"""#"G"#????????????????????? | | ?????###??????????###"T"#">"###??????????????????? | | ???#######????????# #??????????????????? | | #??# ! #?? ?????# """ #??#???????????????? | | ???# #????"?? # """ #? #???????????????? | | "??+ +?"?"????# """ # #???????????????? | | ???# #???"????# """ "T" # #???????????????? | | ???# #????? ??# """ """ / #???????????????? | | ??#?# ########### # #???????????????? | | ???## # ####+##+##### #???????????????? | | ????# # #### ####a a#??????????????? | | #???# # ##?# Y@ ^ ????????? | | ?#??# / """""" #??# ^ ????????? | | #?#?# # " " #### ####### ####???????????? | | ##??# # "?? " + Y #?#??#??+###??????????????? | | ?#?## # "??"?" ######?? ?? ???????????????????? | | ????# # ?? #?##?# ????????????????????????? | | ##### #####?#####??????????????????????????????? | | ######???#??#???????? ???????????????????? | | #???#?###?#?#??? ???????? ??????????????? | | #??#?###?????#??????????"????????????????? | | #########?#??#?#?##??#??????? ???????????????????? | | #?#???#???#???#?#?????#?????????#????????????????? | | | | | | | | | | | | | | | | | | | | | | | | | | | +----------------------------------------------------+ Best States ------------- Heat Dissipation 41 Energy Generation 19 Energy Capacity 430 Matter Stores 300 Matter Capacity 300 Sight Range 16 Robot Scan Range 14 Terrain Scan Range 14 Terrain Scan Density 110 ECM Strength 1 Additional Mass Support 6 Armor Coverage 225 Evasion (%) 62 Item Schematics ----------------- None Robot Schematics ------------------ None Fabricated ------------ Nothing Alien Tech Used ----------------- None Achievements -------------- Loot Pinata Oops Power Corrupts Shopping List Storm Trooper Challenges ------------ None Game ------ Seed WarpSpikedFacilitator Manual? 0 Play Time 00:22:30 Cumulative 1.2 hours Start 2022.06.30 @ 18:05:59 End 2022.06.30 @ 18:34:21 Sessions 1 Manual Loads 0 Difficulty Rogue Special Mode None Game No. 2 Rogue 2 Adventurer 0 Explorer 0 Win Type - Total 0 Types 0/0/0/0/0/0/0/0/0 Lore% 1 Gallery% 3 Achievement% 5 Wizard Run 0 Options --------- ASCII 0 Keyboard 0 Movement Arrows Keybinds 0 Fullscreen 1 Font 20/SmallcapsGlow Map View 66x50 Tactical HUD 0 Map Filters NONE Filters NONE Steam 0 RUN: c03c9610-b8fc-40d4-b499-d2216f835213